bitfinex/quotes_ETHUSD_20240614
["timestamp","ask_amount","ask_price","bid_price","bid_amount"]
[1718355796066,3.1459,3519.9,3518.8,3.83544514]
[1718355797202,3.1459,3519.9,3518.9,0.05682614]
[1718355797412,2.97352428,3519.9,3518.9,0.05682614]
[1718355797613,2.97352428,3519.9,3519.0,0.696]
[1718355797767,2.97352428,3519.9,3519.1,0.05682616]
[1718355799396,2.97352428,3519.9,3519.0,0.696]
[1718355800386,2.97352428,3519.9,3519.1,0.05682618]
[1718355806087,4.08161947,3520.1,3519.1,0.05682618]
[1718355806413,0.696,3520.0,3519.1,0.05682618]
[1718355807098,4.08161947,3520.1,3519.1,0.05682618]
[1718355807298,2.2977,3520.1,3519.2,3.83544514]
[1718355807536,2.2977,3520.1,3519.3,0.0568186]
[1718355807719,2.2977,3520.1,3519.3,1.49026374]
[1718355808249,2.2977,3520.1,3519.3,0.0568186]
[1718355808411,2.9937,3520.1,3519.1,0.696]
[1718355808612,2.9937,3520.1,3519.1,2.12944514]
[1718355810449,2.2977,3520.1,3519.1,2.12944514]
[1718355811295,2.2977,3520.1,3519.1,1.43344514]
[1718355811494,0.696,3520.0,3519.1,2.12944514]
[1718355812010,0.696,3519.8,3518.8,2.402]
[1718355812204,2.2705,3519.5,3518.8,3.13944514]
[1718355817555,2.2705,3519.5,3518.7,1.706]
[1718355818616,2.2705,3519.5,3518.6,0.696]
[1718355818950,0.696,3519.6,3518.5,8.976]
[1718355818951,2.3157,3519.3,3518.5,8.976]
[1718355819119,2.3157,3519.3,3518.3,0.01]
[1718355819320,2.3157,3519.3,3518.4,1.43344514]
[1718355821356,2.3157,3519.3,3518.3,2.412]
[1718355821648,2.403,3518.9,3518.3,0.01]
[1718355823970,0.696,3519.2,3518.3,0.01]
[1718355823971,2.412,3519.2,3518.3,3.14944514]
[1718355824250,2.412,3519.2,3518.4,0.696]
[1718355824459,2.412,3519.2,3518.6,0.696]
[1718355824614,2.412,3519.2,3518.8,0.696]
[1718355824822,2.412,3519.2,3518.8,0.75283093]
[1718355825018,2.412,3519.2,3518.8,0.05683093]
[1718355825859,2.412,3519.2,3518.7,0.05683093]
[1718355827132,2.412,3519.2,3518.6,0.696]
[1718355829156,2.412,3519.2,3518.7,0.05683096]
[1718355839872,2.412,3519.2,3518.6,0.696]
[1718355840246,2.412,3519.2,3518.7,0.05683104]
[1718355841074,2.356,3519.8,3518.8,0.75283105]
[1718355841372,2.356,3519.8,3519.0,0.696]
[1718355841545,2.356,3519.8,3519.1,0.05682687]
[1718355841752,2.356,3519.8,3519.0,0.75282687]
[1718355842141,2.356,3519.8,3519.0,0.05682687]
[1718355842450,2.356,3519.8,3519.1,0.696]
[1718355843237,2.356,3519.8,3519.2,0.05682769]
[1718355843871,2.356,3519.8,3519.3,1.49026786]
[1718355844034,2.2841,3520.2,3519.3,2.18626786]
[1718355845261,2.2841,3520.2,3519.5,0.696]
[1718355845459,2.2841,3520.2,3519.6,0.0568185]
[1718355848474,2.3019,3520.9,3520.0,0.696]
[1718355848659,2.3019,3520.9,3520.1,0.05680987]
[1718355849008,2.9979,3520.9,3520.1,0.05680987]
[1718355849881,2.9979,3520.9,3519.8,2.402]
[1718355850082,0.29979,3520.8,3519.8,3.83544514]
[1718355850381,0.696,3520.7,3519.8,3.13944514]
[1718355852501,0.696,3520.7,3519.8,3.83544514]
[1718355854203,0.696,3520.8,3519.8,3.83544514]
[1718355855380,0.696,3520.8,3519.9,0.05680991]
[1718355855602,2.3019,3520.9,3519.9,0.05680991]
[1718355855841,0.696,3520.7,3519.8,1.706]
[1718355856006,2.4975,3520.6,3519.7,2.4595]
[1718355856175,2.4975,3520.6,3519.7,3.89294514]
[1718355856372,0.696,3520.5,3519.7,3.89294514]
[1718355856606,0.696,3520.5,3519.6,8.976]
[1718355856768,1.01535,3520.5,3519.6,10.40944514]
[1718355857120,1.01535,3520.5,3519.6,8.976]
[1718355857768,1.01535,3520.5,3519.5,1.706]
[1718355858005,1.01535,3520.5,3519.5,3.13944514]
[1718355860499,2.3241,3520.4,3519.5,3.13944514]
[1718355860887,2.3241,3520.4,3519.5,3.83544514]
[1718355862711,2.3241,3520.4,3519.6,0.05681525]
[1718355863885,2.3241,3520.4,3519.7,0.696]
[1718355864215,2.3241,3520.4,3519.8,0.05681332]
[1718355867631,0.696,3520.7,3519.8,5.59015846]
[1718355867632,3.1886,3520.7,3519.8,5.59015846]
[1718355867801,2.4926,3520.7,3519.8,5.59015846]
[1718355867984,3.1886,3520.7,3519.8,5.59015846]
[1718355869236,3.1886,3520.7,3519.8,5.53334514]
[1718355879364,2.4926,3520.7,3519.8,5.53334514]
[1718355879711,3.1886,3520.7,3519.8,5.53334514]
[1718355879914,0.696,3520.7,3519.8,5.53334514]
[1718355886618,2.3912,3520.9,3519.8,5.53334514]
[1718355886824,0.696,3520.6,3519.8,5.53334514]
[1718355887360,0.696,3520.6,3519.9,0.05681028]
[1718355887724,0.696,3520.6,3519.8,5.53334514]
[1718355888222,2.322,3520.5,3519.8,2.3939]
[1718355888451,0.696,3520.4,3519.6,4.1748]
[1718355888663,0.696,3520.4,3519.7,3.13944514]
[1718355889259,0.696,3520.6,3519.7,3.13944514]
[1718355894083,0.696,3520.6,3519.8,0.05681213]
[1718355894426,2.3438,3521.1,3519.9,2.4805]
[1718355894786,0.696,3520.7,3519.9,2.4805]
[1718355895396,0.696,3520.7,3520.0,0.0568121]
[1718355900411,2.3438,3521.1,3520.0,0.0568121]
[1718355900612,3.13584969,3521.1,3520.0,0.0568121]
[1718355901135,0.696,3520.7,3520.0,0.0568121]
[1718355902907,2.4335,3521.0,3520.0,0.0568121]
[1718355903240,0.696,3520.9,3520.0,0.0568121]
[1718355904931,2.4335,3521.0,3520.0,0.0568121]
[1718355904932,0.696,3520.8,3520.0,0.0568121]
[1718355912484,0.696,3520.8,3520.1,2.4063]
[1718355921087,0.696,3520.8,3519.7,9.29785272]
[1718355921088,2.322,3520.2,3519.7,7.27]
[1718355921287,0.696,3519.9,3519.7,7.27]
[1718355921443,0.696,3519.9,3519.4,2.358]
[1718355921642,0.696,3519.9,3519.5,0.2358]
[1718355929085,2.322,3520.2,3519.5,0.2358]
[1718355929086,0.696,3520.1,3519.5,0.2358]
[1718355930706,3.018,3520.2,3519.5,0.2358]
[1718355934309,2.322,3520.2,3519.5,0.2358]
[1718355934612,3.018,3520.2,3519.5,0.2358]
[1718355938912,3.018,3520.2,3519.4,2.358]
[1718355939581,3.018,3520.2,3519.2,1.706]
[1718355939781,0.696,3520.0,3519.2,1.706]
[1718355942399,0.696,3520.1,3519.2,1.706]
[1718355944018,2.3619,3520.0,3519.2,1.706]
[1718355945318,2.3619,3520.0,3519.1,7.27]
[1718355945504,0.696,3519.4,3519.1,7.27]
[1718355945708,2.3434,3519.3,3519.1,7.27]
[1718355947616,0.696,3519.2,3519.1,7.27]
[1718355948598,2.3434,3519.3,3518.5,7.27]
[1718355948925,2.3434,3519.3,3518.3,4.028]
[1718355948926,0.696,3519.2,3518.3,4.028]
[1718355949128,2.3434,3519.3,3518.3,5.46144514]
[1718355949310,0.696,3519.2,3518.3,5.46144514]
[1718355949915,2.3434,3519.3,3518.3,5.46144514]
[1718355950106,0.696,3519.2,3518.3,5.46144514]
[1718355950507,0.696,3519.2,3518.3,6.15744514]
[1718355953837,0.696,3519.2,3518.3,5.46144514]
[1718355954126,0.696,3519.2,3518.3,6.15744514]
[1718355955102,2.3434,3519.3,3518.3,6.15744514]
[1718355957107,2.3434,3519.3,3518.4,0.696]
[1718355959733,2.3434,3519.3,3518.3,5.46144514]
[1718355959935,2.3434,3519.3,3518.4,0.696]
[1718355960463,0.696,3519.0,3518.3,0.01]
[1718355960902,2.329,3519.1,3518.3,0.01]
[1718355961802,3.025,3519.1,3518.3,0.01]
[1718355962839,2.329,3519.1,3518.3,0.01]
[1718355963998,2.329,3519.1,3518.3,0.706]
[1718355965338,2.329,3519.1,3518.3,0.01]
[1718355965509,2.329,3519.1,3518.3,0.706]
[1718355972937,2.329,3519.1,3518.3,0.01]
[1718355973665,2.329,3519.1,3518.4,0.696]
[1718355974013,2.4159,3519.4,3518.6,3.0955]
[1718355974208,2.4159,3519.4,3518.8,0.696]
[1718355976855,2.4159,3519.4,3518.7,0.696]
[1718355980271,3.0,3520.3,3518.7,0.75283371]
[1718355980443,2.3305,3519.7,3518.9,0.696]
[1718355980639,2.3305,3519.7,3519.0,2.3469268]
[1718355983243,2.3305,3519.7,3519.0,2.2901]
[1718355986531,2.3305,3519.7,3518.8,6.09374514]
[1718355989206,0.696,3519.5,3518.6,7.27]
[1718355989422,3.146,3519.3,3518.4,4.64732401]
[1718355989635,3.146,3519.3,3518.5,1.43344514]
[1718355990911,2.45,3519.3,3518.4,4.64732401]
[1718355991069,3.146,3519.3,3518.4,6.08076915]
[1718355992507,3.146,3519.3,3518.4,3.73616915]
[1718355993109,0.696,3519.3,3518.4,3.73616915]
[1718355993317,0.696,3519.1,3518.4,0.59572401]
[1718355993619,2.3186,3519.0,3518.4,0.59572401]
[1718355996593,2.2827,3519.7,3518.5,0.696]
[1718355996792,2.2827,3519.5,3518.5,0.696]
[1718355999138,2.9787,3519.5,3518.5,0.696]
[1718355999486,2.2755,3519.4,3518.5,0.696]
[1718355999910,0.696,3519.2,3518.3,0.01]
[1718356000128,2.2755,3519.1,3518.3,0.01]
[1718356010303,2.2755,3519.1,3518.3,0.706]
[1718356013133,2.2755,3519.1,3518.4,0.05683823]
[1718356013337,2.2755,3519.1,3518.5,0.696]
[1718356017627,2.2958,3519.3,3518.5,3.0997]
[1718356018448,2.2958,3519.3,3518.5,2.4037]
[1718356018633,2.2958,3519.3,3518.5,3.0997]
[1718356019251,2.2958,3519.3,3518.5,2.4037]
[1718356019435,2.2958,3519.3,3518.4,0.696]
[1718356019638,2.2958,3519.3,3518.4,0.75283824]
[1718356022333,2.2958,3519.3,3518.4,0.05683824]
[1718356022563,2.2958,3519.3,3518.4,0.696]
[1718356024173,2.2958,3519.3,3518.6,3.1492]
[1718356024466,2.2958,3519.3,3518.7,0.05683227]
[1718356024825,2.2958,3519.3,3518.8,0.05683222]
[1718356025858,2.2958,3519.3,3518.6,3.1492]
[1718356026055,2.2958,3519.3,3518.6,4.58264514]
[1718356028157,2.2958,3519.3,3518.6,2.12944514]
[1718356028725,2.2958,3519.3,3518.6,1.43344514]
[1718356029837,2.449,3519.2,3518.3,0.706]
[1718356030227,2.449,3519.2,3518.3,0.76283992]
[1718356030439,2.449,3519.2,3518.5,0.696]
[1718356030964,2.449,3519.2,3518.3,0.60572401]
[1718356031279,2.449,3519.2,3518.5,0.696]
[1718356034668,2.449,3519.2,3518.3,0.706]
[1718356035179,2.449,3519.2,3518.3,0.06683837]
[1718356035376,2.449,3519.2,3518.3,0.76283837]
[1718356036239,2.449,3519.2,3518.6,0.696]
[1718356036440,2.449,3519.2,3518.8,0.696]
[1718356037139,2.4043,3520.0,3518.8,0.75283274]
[1718356037346,2.4043,3520.0,3519.5,0.696]
[1718356037543,2.4043,3520.0,3519.7,0.696]
[1718356038379,2.4043,3520.0,3519.1,8.977]
[1718356038584,2.4043,3520.0,3519.4,0.696]
[1718356041781,2.4043,3520.0,3519.4,0.75282073]
[1718356043980,2.452,3520.8,3519.4,2.18626587]
[1718356044185,0.696,3520.5,3519.5,1.43344514]
[1718356044489,0.696,3520.7,3519.8,0.696]
[1718356044791,0.696,3520.7,3519.8,0.75281464]
[1718356045160,3.01416426,3520.8,3519.8,2.12944514]
[1718356045378,0.696,3520.7,3519.8,2.12944514]
[1718356045862,0.696,3520.7,3519.8,1.43344514]
[1718356046063,0.696,3520.6,3519.8,1.43344514]
[1718356046785,2.452,3520.8,3519.8,2.12944514]
[1718356046951,3.148,3520.8,3519.6,1.707]
[1718356047147,0.696,3520.6,3519.7,0.696]
[1718356047383,2.452,3520.7,3519.7,0.696]
[1718356047590,0.696,3520.6,3519.7,0.696]
[1718356048104,0.696,3520.6,3519.8,3.89714514]
[1718356048327,2.3743,3522.4,3520.6,1.707]
[1718356048456,3.0703,3522.4,3521.4,0.696]
[1718356048654,0.696,3522.2,3520.8,1.707]
[1718356048897,2.3743,3522.4,3520.9,3.14044514]
[1718356050179,2.3743,3522.4,3521.0,0.05679224]
[1718356050355,2.3743,3522.4,3521.1,1.43344514]
[1718356050556,2.3743,3522.4,3521.2,0.05679031]
[1718356050799,2.3743,3522.4,3521.3,0.0567903]
[1718356051857,2.3743,3522.4,3521.1,3.14044514]
[1718356052062,2.3743,3522.4,3520.6,1.707]
[1718356052281,2.3743,3522.4,3520.8,1.707]
[1718356052486,2.3743,3522.4,3520.9,3.14044514]
[1718356054754,2.2605,3521.7,3520.9,3.14044514]
[1718356056177,2.2605,3521.7,3521.0,0.05679196]
[1718356056375,2.2605,3521.7,3521.0,1.4902371]
[1718356057023,2.2605,3521.7,3521.1,3.14044514]
[1718356057160,2.3209,3522.1,3521.2,0.05679028]
[1718356057365,2.3209,3522.1,3521.3,0.05678968]
[1718356059468,2.3209,3522.1,3521.2,1.43344514]
[1718356060402,2.3209,3522.1,3520.7,1.707]
[1718356060571,2.3209,3522.1,3520.9,1.707]
[1718356060769,2.3209,3522.1,3521.0,3.14044514]
[1718356068919,0.7145,3521.8,3521.0,3.14044514]
[1718356069756,2.4587,3521.7,3521.0,3.14044514]
[1718356083148,0.697,3521.4,3520.7,1.707]
[1718356083374,0.697,3521.4,3520.8,1.43344514]
[1718356083554,0.697,3521.4,3520.8,4.43344514]
[1718356086081,2.2679,3521.3,3520.6,7.27]
[1718356086281,2.2679,3520.8,3520.6,7.27]
[1718356086479,2.2679,3520.8,3520.3,1.707]
[1718356086682,2.2679,3520.8,3520.3,3.14044514]
[1718356086861,0.697,3520.7,3520.3,3.14044514]
[1718356087381,0.697,3520.7,3520.3,1.43344514]
[1718356087588,2.2679,3520.8,3520.3,1.43344514]
[1718356087977,2.9649,3520.8,3520.0,7.27]
[1718356088177,2.9649,3520.8,3520.0,8.70344514]
[1718356089203,2.9649,3520.8,3520.1,3.0]
[1718356089379,2.9649,3520.8,3520.1,3.05680887]
[1718356089779,2.9649,3520.8,3520.1,3.0]
[1718356091477,0.0175,3521.8,3520.1,3.0]
[1718356091478,0.697,3520.6,3520.1,3.0]
[1718356091685,2.4893,3520.5,3520.1,3.0]
[1718356092509,2.4893,3520.5,3519.8,1.707]
[1718356092740,2.4893,3520.5,3519.9,1.43344514]
[1718356093016,2.4893,3520.5,3519.9,4.43344514]
[1718356093384,2.4893,3520.5,3519.9,1.43344514]
[1718356095456,2.4893,3520.5,3520.0,0.05681116]
[1718356099334,2.4893,3520.5,3519.9,1.43344514]
[1718356099851,3.1863,3520.5,3519.9,1.43344514]
[1718356100430,2.4893,3520.5,3520.0,0.0568112]
[1718356108699,2.4893,3520.5,3519.9,1.43344514]
[1718356112971,0.697,3520.4,3519.8,3.0]
[1718356113182,2.4985,3520.1,3519.6,7.27]
[1718356115994,2.4985,3520.1,3519.7,0.05681677]
[1718356122359,2.2782,3520.0,3519.4,1.707]
[1718356122998,2.373,3519.8,3519.4,1.707]
[1718356123502,2.373,3519.8,3519.3,1.707]
[1718356123677,2.373,3519.8,3519.3,3.14044514]
[1718356149533,2.373,3519.8,3519.4,0.05682132]
[1718356150421,2.3398,3520.3,3519.7,2.404]
[1718356150620,0.21591189,3521.0,3520.1,0.697]
[1718356150621,2.3398,3520.9,3520.1,0.697]
[1718356150825,2.3398,3520.9,3520.2,3.38084514]
[1718356151140,2.3398,3520.9,3520.2,3.14044514]
[1718356151464,0.21591189,3521.0,3520.2,3.14044514]
[1718356158494,0.697,3520.9,3520.2,3.14044514]
[1718356158791,2.4969,3520.9,3519.8,2.30272401]
[1718356158994,3.1939,3520.9,3519.9,2.18725524]
[1718356159351,2.4969,3520.9,3519.9,6.89425524]
[1718356160053,2.4969,3520.9,3520.0,2.3923]
[1718356160250,2.4969,3520.9,3520.1,0.05680727]
[1718356160454,2.4969,3520.9,3520.0,3.82574514]
[1718356160651,2.4969,3520.9,3520.0,1.43344514]
[1718356160855,0.697,3520.8,3520.0,1.43344514]
[1718356164173,2.4969,3520.9,3520.0,1.43344514]
[1718356164389,2.4969,3520.9,3520.1,0.05680886]
[1718356164694,0.697,3520.8,3520.0,1.43344514]
[1718356164858,2.4969,3520.9,3520.0,1.43344514]
[1718356164859,2.4411,3520.7,3520.0,1.43344514]
[1718356165062,0.697,3520.6,3520.0,1.43344514]
[1718356165787,2.4411,3520.7,3520.0,1.43344514]
[1718356166001,3.1381,3520.7,3520.0,1.43344514]
[1718356166294,2.4411,3520.7,3520.0,1.43344514]
[1718356166466,3.1381,3520.7,3520.0,1.43344514]
[1718356167608,0.697,3520.4,3519.9,3.0]
[1718356167765,2.4342,3520.3,3519.6,1.707]
[1718356168101,2.4342,3520.3,3519.6,3.14044514]
[1718356168297,2.4342,3520.3,3519.6,1.43344514]
[1718356168298,3.1312,3520.3,3519.6,1.43344514]
[1718356168501,3.1312,3520.3,3519.4,3.0]
[1718356168677,3.1312,3520.3,3519.5,1.43344514]
[1718356169507,2.4342,3520.3,3519.4,4.707]
[1718356169806,2.4342,3520.3,3519.3,7.27]
[1718356169807,2.2742,3520.0,3519.3,7.27]
[1718356170006,2.2742,3520.0,3519.3,8.70344514]
[1718356170767,2.2742,3520.0,3519.4,0.05682131]
[1718356176431,2.2742,3520.0,3519.3,8.70344514]
[1718356176940,0.697,3519.9,3519.3,8.70344514]
[1718356177231,0.697,3519.9,3519.3,1.43344514]
[1718356177419,2.4019,3519.8,3519.1,1.707]
[1718356177639,2.4019,3519.8,3519.1,3.14044514]
[1718356179802,2.4019,3519.8,3519.2,0.05682472]
[1718356180540,2.3078,3520.0,3519.3,1.49026981]
[1718356180749,2.3078,3520.0,3519.3,2.18726981]
[1718356181943,2.3078,3520.0,3519.3,3.89426981]
[1718356182243,2.3078,3520.0,3519.3,6.25116981]
[1718356186405,2.3078,3520.0,3519.3,3.14044514]
[1718356187041,2.3078,3520.0,3519.0,0.697]
[1718356187042,0.697,3519.9,3519.0,1.707]
[1718356187219,0.697,3519.9,3519.1,1.43344514]
[1718356195050,2.3078,3520.0,3519.1,1.43344514]
[1718356197558,3.0437,3519.9,3519.1,1.43344514]
[1718356197761,2.3467,3519.9,3519.1,1.43344514]
[1718356202248,2.3467,3519.9,3519.2,0.05682339]
[1718356203854,2.3629,3521.0,3519.4,2.404]
[1718356204058,3.0,3521.2,3519.5,1.43344514]
[1718356204059,2.4339,3520.5,3519.5,1.43344514]
[1718356204233,2.4339,3520.5,3519.6,0.0568161]
[1718356204615,3.1309,3520.5,3519.6,0.0568161]
[1718356208746,2.4339,3520.5,3519.6,0.0568161]
[1718356208951,0.697,3520.4,3519.6,0.0568161]
[1718356210223,2.4339,3520.5,3519.7,1.43344514]
[1718356210446,2.4339,3520.5,3519.8,0.05681311]
[1718356210644,2.4339,3520.5,3519.8,1.49025825]
[1718356214424,2.4339,3520.5,3519.8,1.43344514]
[1718356215431,0.697,3520.4,3519.8,1.43344514]
[1718356215632,0.697,3520.2,3519.5,0.59572401]
[1718356215858,2.398,3520.2,3519.5,5.27477578]
[1718356218873,2.398,3520.2,3519.5,5.02916915]
[1718356219773,2.398,3520.2,3519.5,5.27477977]
[1718356221039,2.398,3520.2,3519.5,5.02916915]
[1718356221251,2.398,3520.2,3519.5,5.2747808]
[1718356221839,2.398,3520.2,3519.5,3.24561165]
[1718356222172,0.697,3520.1,3519.5,3.0]
[1718356222369,0.697,3520.1,3519.4,5.30272401]
[1718356222573,0.697,3520.1,3519.4,6.73616915]
[1718356224359,2.398,3520.2,3519.4,6.73616915]
[1718356224678,3.095,3520.2,3519.4,6.73616915]
[1718356226268,2.3894,3520.1,3519.4,3.59572401]
[1718356226474,0.697,3520.0,3519.4,3.0]
[1718356227486,2.2731,3519.9,3519.3,7.27]
[1718356228483,2.2731,3519.9,3519.2,0.59572401]
[1718356233003,2.9701,3519.9,3519.1,3.0]
[1718356233184,2.9701,3519.9,3519.0,3.59572401]
[1718356233385,2.2731,3519.9,3519.1,0.05682644]
[1718356233566,0.697,3519.8,3519.1,0.05682644]
[1718356235016,2.2731,3519.9,3519.1,0.05682644]
[1718356235305,2.2731,3519.9,3519.1,3.65255045]
[1718356235473,2.2731,3519.9,3519.1,0.05682644]
[1718356235886,2.2731,3519.9,3519.1,0.65255045]
[1718356236205,2.2731,3519.9,3519.1,0.05682644]
[1718356236567,2.2731,3519.9,3519.1,0.65255045]
[1718356238926,2.2731,3519.9,3519.1,1.34955045]
[1718356239083,2.2731,3519.9,3519.1,4.34955045]
[1718356239452,2.2731,3519.9,3519.2,3.73616915]
[1718356239577,2.2731,3519.9,3519.2,3.98181028]
[1718356240200,2.2731,3519.9,3519.2,3.38608627]
[1718356240419,2.2731,3519.9,3519.2,3.14044514]
[1718356241646,2.2731,3519.9,3519.2,3.73616915]
[1718356242386,2.2731,3519.9,3519.2,3.98180312]
[1718356243224,2.2731,3519.9,3519.2,3.98180279]
[1718356243610,2.2731,3519.9,3519.3,0.05682033]
[1718356243813,2.2731,3519.9,3519.3,1.49026547]
[1718356244828,2.2731,3519.9,3519.2,0.24563364]
[1718356245030,2.2731,3519.9,3519.2,0.05682498]
[1718356246134,2.2731,3519.9,3519.2,3.05682498]
[1718356246332,2.2731,3519.9,3519.2,0.05682498]
[1718356247829,2.2731,3519.9,3519.1,0.05682502]
[1718356248200,2.2731,3519.9,3519.1,0.65254903]
[1718356248513,2.2731,3519.9,3519.1,0.05682502]
[1718356249032,2.2731,3519.9,3519.1,0.65254903]
[1718356251334,2.2731,3519.9,3519.1,0.05682502]
[1718356251533,2.2731,3519.9,3519.1,0.65254903]
[1718356251936,2.2731,3519.9,3519.1,0.05682502]
[1718356253916,2.2731,3519.9,3519.0,5.20609889]
[1718356254114,2.3679,3519.8,3519.0,4.67909554]
[1718356255342,2.3679,3519.8,3519.0,6.63954403]
[1718356255501,2.3679,3519.8,3519.0,6.04382002]
[1718356256042,2.3679,3519.8,3519.1,0.2456504]
[1718356256236,2.3679,3519.8,3519.0,4.67909554]
[1718356257027,2.3679,3519.8,3519.0,6.04382002]
[1718356257226,2.3679,3519.8,3519.1,0.2456504]
[1718356257421,2.3679,3519.8,3519.0,4.67909554]
[1718356259336,2.3679,3519.8,3519.0,5.37609554]
[1718356259744,2.3679,3519.8,3519.1,0.05682507]
[1718356260047,2.3679,3519.8,3519.1,0.30247547]
[1718356260840,2.3679,3519.8,3519.1,0.89819948]
[1718356261118,2.3679,3519.8,3519.1,0.30247203]
[1718356261339,2.3679,3519.8,3519.1,0.89819604]
[1718356261540,2.3679,3519.8,3519.1,2.2629014]
[1718356261861,2.2597,3520.7,3519.4,2.404]
[1718356262059,2.2597,3520.4,3519.6,1.707]
[1718356262242,2.2597,3520.4,3519.7,1.49026021]
[1718356262447,0.697,3520.3,3519.7,1.43344514]
[1718356264739,2.2597,3520.4,3519.7,1.43344514]
[1718356271045,2.2597,3520.4,3519.8,0.05681513]
[1718356272454,2.2597,3520.4,3519.7,3.80324514]
[1718356274271,2.2597,3520.4,3519.8,0.05681376]
[1718356274483,2.2597,3520.4,3519.8,1.4902589]
[1718356276665,2.2776,3521.1,3519.8,1.4902589]
[1718356276987,2.2776,3521.1,3520.3,0.697]
[1718356277205,2.2776,3521.1,3520.3,2.13044514]
[1718356277372,2.2776,3521.1,3520.4,1.49024928]
[1718356279398,2.2776,3521.1,3520.5,0.697]
[1718356279607,2.2776,3521.1,3520.6,0.05680154]
[1718356280523,0.697,3521.5,3520.6,0.05680154]
[1718356280524,2.4462,3521.4,3520.6,0.05680154]
[1718356282702,2.4462,3521.4,3520.7,1.43344514]
[1718356283024,2.455,3521.7,3520.9,0.697]
[1718356283199,2.455,3521.7,3521.0,0.05679627]
[1718356283524,2.455,3521.7,3520.8,0.05679627]
[1718356283730,2.455,3521.7,3520.8,1.49024141]
[1718356288203,2.455,3521.7,3520.8,1.43344514]
[1718356288592,3.152,3521.7,3520.8,1.43344514]
[1718356289743,2.3247,3521.6,3520.8,1.43344514]
[1718356290219,2.3247,3521.4,3520.4,1.706]
[1718356290542,0.0175,3521.8,3519.9,2.3514]
[1718356290543,2.4222,3521.0,3519.9,2.3514]
[1718356290838,0.697,3520.3,3519.3,3.71474981]
[1718356291148,0.697,3520.3,3519.4,1.43344514]
[1718356291330,0.697,3520.3,3519.5,1.706]
[1718356291537,2.4222,3520.6,3519.7,1.706]
[1718356291695,3.1192,3520.6,3519.8,1.43344514]
[1718356296607,2.4222,3520.6,3519.9,0.05681267]
[1718356296805,2.4222,3520.6,3519.9,1.49025781]
[1718356297546,2.4222,3520.6,3520.0,0.697]
[1718356297858,2.4222,3520.6,3520.1,1.490256]
[1718356298063,3.0,3521.6,3520.1,1.490256]
[1718356298064,2.2574,3520.9,3520.2,0.697]
[1718356298205,2.2574,3520.9,3520.4,0.697]
[1718356298401,2.2574,3520.9,3520.4,0.05680454]
[1718356299136,2.3142,3521.2,3520.5,1.43344514]
[1718356301721,0.697,3521.1,3520.5,1.43344514]
[1718356302766,2.3142,3521.2,3520.5,1.43344514]
[1718356303054,3.0112,3521.2,3520.5,1.43344514]
[1718356306168,3.0112,3521.2,3520.0,2.403]
[1718356306319,3.0112,3521.2,3520.2,1.706]
[1718356306650,3.0175,3521.8,3520.0,1.706]
[1718356306651,0.697,3520.8,3520.0,1.706]
[1718356306856,0.697,3520.8,3520.1,1.43344514]
[1718356307055,0.697,3520.8,3520.1,4.43344514]
[1718356307416,0.697,3520.8,3520.1,1.43344514]
[1718356311916,0.697,3520.8,3520.0,3.0]
[1718356312120,0.697,3520.4,3519.7,3.0]
[1718356312435,0.697,3520.4,3519.7,1.43344514]
[1718356313346,0.697,3520.4,3519.5,4.706]
[1718356313553,0.697,3520.4,3519.5,3.13944514]
[1718356313554,2.4122,3520.3,3519.5,3.13944514]
[1718356313859,0.697,3520.2,3519.6,3.0]
[1718356318235,0.697,3520.2,3519.5,1.43344514]
[1718356320127,2.2962,3520.1,3519.5,1.43344514]
[1718356320451,2.2962,3520.1,3519.6,0.14334451]
[1718356320941,2.2962,3520.1,3519.2,5.6993836]
[1718356321133,2.2962,3520.1,3519.3,1.43344514]
[1718356321347,2.9932,3520.1,3519.3,1.43344514]
[1718356321747,2.9932,3520.1,3519.2,4.706]
[1718356322053,2.4715,3520.0,3519.2,1.43344514]
[1718356322369,2.4715,3520.0,3519.3,3.0]
[1718356322670,2.4715,3520.0,3519.2,4.43344514]
[1718356324451,2.4715,3520.0,3519.2,1.43344514]
[1718356326277,2.4971,3519.8,3518.9,1.706]
[1718356326570,2.4971,3519.8,3519.0,1.43344514]
[1718356326768,2.4971,3519.8,3519.0,4.43344514]
[1718356329475,2.3089,3519.6,3518.9,1.706]
[1718356329768,2.3089,3519.4,3518.9,1.43344514]
[1718356330736,2.3089,3519.4,3518.7,4.706]
[1718356331069,2.3089,3519.4,3518.8,1.43344514]
[1718356331284,0.697,3519.3,3518.6,1.706]
[1718356331452,2.4016,3519.2,3518.6,3.13944514]
[1718356331648,2.4016,3519.2,3518.3,3.1724]
[1718356331649,2.4016,3519.2,3518.3,1.716]
[1718356331837,2.4016,3519.2,3518.4,2.13044514]
[1718356332237,2.4016,3519.2,3518.4,3.83644514]
[1718356333684,2.4016,3519.2,3518.4,3.13944514]
[1718356336950,2.4016,3519.2,3518.3,0.01]
[1718356337157,2.4016,3519.2,3518.3,1.44344514]
[1718356338198,2.71146,3519.2,3518.3,1.44344514]
[1718356339065,0.697,3519.1,3518.3,1.44344514]
[1718356339261,2.956,3519.1,3518.3,1.44344514]
[1718356339471,2.3485,3519.0,3518.3,1.44344514]
[1718356344275,2.3485,3519.0,3518.4,0.05683819]
[1718356345994,2.3485,3519.0,3518.3,1.44344514]
[1718356346762,2.3485,3519.0,3518.4,0.0568382]